[Event "Late-Titled-Tuesday-Blitz-October-17-2023"]
[Site "Chess.com"]
[Date "2023.10.17"]
[Round "8"]
[White "AryanTari"]
[Black "BardArtem"]
[Result "1-0"]
[WhiteElo "2949"]
[BlackElo "2760"]
[TimeControl "180+1"]
[EndTime "15:24:07 PDT"]
[Termination "AryanTari won by resignation"]

1. d4 {[%clk 0:03:00.9]} 1... d5 {[%clk 0:02:56.6]} 2. c3 {[%clk 0:03:01.5]}
2... Nf6 {[%clk 0:02:56.5]} 3. Nf3 {[%clk 0:03:01.4]} 3... Bf5 {[%clk
0:02:49.7]} 4. Bf4 {[%clk 0:02:59.2]} 4... c6 {[%clk 0:02:47.4]} 5. Nbd2 {[%clk
0:02:55.1]} 5... e6 {[%clk 0:02:47.3]} 6. h3 {[%clk 0:02:55.3]} 6... h6 {[%clk
0:02:47.5]} 7. e3 {[%clk 0:02:55.5]} 7... Nbd7 {[%clk 0:02:47.7]} 8. Be2 {[%clk
0:02:54.4]} 8... Be7 {[%clk 0:02:47.8]} 9. O-O {[%clk 0:02:54.5]} 9... O-O
{[%clk 0:02:48]} 10. b4 {[%clk 0:02:49.6]} 10... a5 {[%clk 0:02:43.8]} 11. b5
{[%clk 0:02:45.7]} 11... c5 {[%clk 0:02:39.7]} 12. c4 {[%clk 0:02:44.9]} 12...
Rc8 {[%clk 0:02:31.4]} 13. Rc1 {[%clk 0:02:41.5]} 13... cxd4 {[%clk 0:02:24.2]}
14. exd4 {[%clk 0:02:41]} 14... Ba3 {[%clk 0:02:19.4]} 15. Rc3 {[%clk
0:02:40.9]} 15... Bb4 {[%clk 0:02:15.6]} 16. Rb3 {[%clk 0:02:40.7]} 16... dxc4
{[%clk 0:02:11.9]} 17. Nxc4 {[%clk 0:02:40.9]} 17... Nd5 {[%clk 0:02:11.6]} 18.
Bd6 {[%clk 0:02:39.6]} 18... Bxd6 {[%clk 0:01:51.6]} 19. Nxd6 {[%clk 0:02:40.5]}
19... Bc2 {[%clk 0:01:52.2]} 20. Qd2 {[%clk 0:02:40.3]} 20... Bxb3 {[%clk
0:01:45.8]} 21. Nxc8 {[%clk 0:02:40.5]} 21... Qxc8 {[%clk 0:01:44.7]} 22. axb3
{[%clk 0:02:40.9]} 22... Qc3 {[%clk 0:01:45.3]} 23. Qxc3 {[%clk 0:02:31.8]}
23... Nxc3 {[%clk 0:01:46.2]} 24. Bd3 {[%clk 0:02:32.4]} 24... Rc8 {[%clk
0:01:41.5]} 25. Ra1 {[%clk 0:02:32]} 25... b6 {[%clk 0:01:39.4]} 26. Kf1 {[%clk
0:02:26.6]} 26... Nd5 {[%clk 0:01:36.2]} 27. Bc4 {[%clk 0:02:26.5]} 27... Kf8
{[%clk 0:01:28.7]} 28. g3 {[%clk 0:02:25.1]} 28... Ke7 {[%clk 0:01:24.3]} 29.
Ke2 {[%clk 0:02:25.3]} 29... Kd6 {[%clk 0:01:23.6]} 30. Kd3 {[%clk 0:02:24.7]}
30... Nb4+ {[%clk 0:01:15.1]} 31. Kd2 {[%clk 0:02:24.5]} 31... e5 {[%clk
0:01:01.4]} 32. Re1 {[%clk 0:02:22.5]} 32... f6 {[%clk 0:00:55.9]} 33. dxe5+
{[%clk 0:02:19.9]} 33... fxe5 {[%clk 0:00:56.8]} 34. Nh4 {[%clk 0:02:16.2]}
34... Rf8 {[%clk 0:00:43.9]} 35. Rd1 {[%clk 0:02:16]} 35... Kc7 {[%clk
0:00:41.1]} 36. Ke2 {[%clk 0:02:08.8]} 36... Nc5 {[%clk 0:00:37]} 37. Nf3 {[%clk
0:02:07.7]} 37... e4 {[%clk 0:00:18.5]} 38. Nd4 {[%clk 0:02:05.8]} 38... Rd8
{[%clk 0:00:13.5]} 39. Rd2 {[%clk 0:01:55.1]} 39... Nbd3 {[%clk 0:00:13.2]} 40.
Ke3 {[%clk 0:01:53.8]} 40... Ne5 {[%clk 0:00:06.5]} 41. Rc2 {[%clk 0:01:54]}
41... Rf8 {[%clk 0:00:02.8]} 42. Bd5 {[%clk 0:01:49.7]} 42... Kd6 {[%clk
0:00:02.7]} 43. Bxe4 {[%clk 0:01:49]} 43... Re8 {[%clk 0:00:02.3]} 44. Nf5+
{[%clk 0:01:47.3]} 44... Kc7 {[%clk 0:00:02.3]} 45. Nxg7 {[%clk 0:01:47.5]}
45... Re7 {[%clk 0:00:02]} 46. Nf5 {[%clk 0:01:48]} 46... Re8 {[%clk 0:00:02.7]}
47. f3 {[%clk 0:01:48.4]} 47... Nxf3 {[%clk 0:00:02.5]} 48. Kxf3 {[%clk
0:01:48.8]} 1-0

[Event "Late-Titled-Tuesday-Blitz-October-17-2023"]
[Site "Chess.com"]
[Date "2023.10.17"]
[Round "8"]
[White "ritanovikova"]
[Black "ToddBryant"]
[Result "1-0"]
[WhiteElo "2146"]
[BlackElo "2300"]
[TimeControl "180+1"]
[EndTime "15:24:08 PDT"]
[Termination "ritanovikova won by resignation"]

1. d4 {[%clk 0:02:57.7]} 1... Nf6 {[%clk 0:02:53.8]} 2. Bf4 {[%clk 0:02:57.9]}
2... g6 {[%clk 0:02:49.5]} 3. c3 {[%clk 0:02:55.4]} 3... Bg7 {[%clk 0:02:48.8]}
4. Nd2 {[%clk 0:02:53.5]} 4... d5 {[%clk 0:02:43.6]} 5. Ngf3 {[%clk 0:02:51.5]}
5... O-O {[%clk 0:02:42.5]} 6. Qc2 {[%clk 0:02:51.4]} 6... c5 {[%clk 0:02:41.3]}
7. dxc5 {[%clk 0:02:49.8]} 7... Nc6 {[%clk 0:02:39.9]} 8. e3 {[%clk 0:02:47.3]}
8... Bf5 {[%clk 0:02:37.3]} 9. Bd3 {[%clk 0:02:45.7]} 9... e6 {[%clk 0:02:34.6]}
10. Bxf5 {[%clk 0:02:44.7]} 10... gxf5 {[%clk 0:02:35.5]} 11. Ne5 {[%clk
0:02:37]} 11... Ne4 {[%clk 0:02:27.1]} 12. Nxc6 {[%clk 0:02:27.9]} 12... bxc6
{[%clk 0:02:27]} 13. Nxe4 {[%clk 0:02:22.3]} 13... fxe4 {[%clk 0:02:27.9]} 14.
Bd6 {[%clk 0:02:22.2]} 14... Re8 {[%clk 0:02:24.9]} 15. c4 {[%clk 0:02:15.8]}
15... Qf6 {[%clk 0:02:00]} 16. Rb1 {[%clk 0:02:10.2]} 16... Qg6 {[%clk
0:01:52.8]} 17. O-O {[%clk 0:02:07.8]} 17... f5 {[%clk 0:01:40.9]} 18. cxd5
{[%clk 0:02:06.8]} 18... exd5 {[%clk 0:01:41.8]} 19. b4 {[%clk 0:02:04.8]} 19...
Re6 {[%clk 0:01:36]} 20. b5 {[%clk 0:01:45.6]} 20... cxb5 {[%clk 0:01:29.2]} 21.
Rxb5 {[%clk 0:01:41.6]} 21... Qh5 {[%clk 0:01:26.3]} 22. Qd1 {[%clk 0:01:34.4]}
22... Qe8 {[%clk 0:01:07.8]} 23. Qxd5 {[%clk 0:01:33.1]} 23... Kh8 {[%clk
0:01:04]} 24. Rfb1 {[%clk 0:01:29.6]} 24... Rd8 {[%clk 0:00:45.1]} 25. Rb8
{[%clk 0:01:20.1]} 25... Bf6 {[%clk 0:00:15.7]} 26. Rxd8 {[%clk 0:01:12]} 26...
Bxd8 {[%clk 0:00:16.6]} 27. Rb8 {[%clk 0:01:11.5]} 27... Rg6 {[%clk 0:00:16.5]}
28. Bg3 {[%clk 0:01:06.2]} 28... Rg8 {[%clk 0:00:14.1]} 29. Be5+ {[%clk
0:01:02.7]} 29... Rg7 {[%clk 0:00:13.9]} 30. Rxd8 {[%clk 0:01:01.8]} 1-0

[Event "Late-Titled-Tuesday-Blitz-October-17-2023"]
[Site "Chess.com"]
[Date "2023.10.17"]
[Round "8"]
[White "Vigg-Sama"]
[Black "Chessbard1972"]
[Result "0-1"]
[WhiteElo "2195"]
[BlackElo "2337"]
[TimeControl "180+1"]
[EndTime "15:24:17 PDT"]
[Termination "Chessbard1972 won on time"]

1. e4 {[%clk 0:03:00.9]} 1... e5 {[%clk 0:02:57.9]} 2. Nf3 {[%clk 0:03:00.9]}
2... Nc6 {[%clk 0:02:57.6]} 3. Bb5 {[%clk 0:03:00.7]} 3... f5 {[%clk 0:02:57]}
4. d3 {[%clk 0:02:57.8]} 4... fxe4 {[%clk 0:02:56.5]} 5. dxe4 {[%clk 0:02:58.7]}
5... Nf6 {[%clk 0:02:56.9]} 6. O-O {[%clk 0:02:54.8]} 6... d6 {[%clk 0:02:56.2]}
7. Bc4 {[%clk 0:02:51.5]} 7... Na5 {[%clk 0:02:53.8]} 8. Bd3 {[%clk 0:02:45.1]}
8... Be6 {[%clk 0:02:50.8]} 9. b3 {[%clk 0:02:37]} 9... Be7 {[%clk 0:02:39.1]}
10. Ng5 {[%clk 0:02:36.3]} 10... Bg8 {[%clk 0:02:35.3]} 11. Nc3 {[%clk
0:02:24.5]} 11... h6 {[%clk 0:02:29.4]} 12. Nf3 {[%clk 0:02:23.6]} 12... c6
{[%clk 0:02:26.2]} 13. Bd2 {[%clk 0:02:19.1]} 13... Be6 {[%clk 0:02:22.1]} 14.
Qe1 {[%clk 0:02:11.2]} 14... b6 {[%clk 0:02:12.6]} 15. Ne2 {[%clk 0:02:01.3]}
15... Nb7 {[%clk 0:02:11.3]} 16. a4 {[%clk 0:01:59.9]} 16... a5 {[%clk
0:02:09.3]} 17. Ng3 {[%clk 0:01:56.6]} 17... O-O {[%clk 0:02:08]} 18. Rd1 {[%clk
0:01:43]} 18... Nc5 {[%clk 0:02:03.4]} 19. Nf5 {[%clk 0:01:30.9]} 19... Nxd3
{[%clk 0:02:01]} 20. cxd3 {[%clk 0:01:20.7]} 20... Bxb3 {[%clk 0:02:00.6]} 21.
Rc1 {[%clk 0:01:18.1]} 21... Bxa4 {[%clk 0:01:56.2]} 22. Bxh6 {[%clk 0:01:05.3]}
22... gxh6 {[%clk 0:01:51.2]} 23. Nxh6+ {[%clk 0:01:03.5]} 23... Kh7 {[%clk
0:01:50.8]} 24. Ng5+ {[%clk 0:00:42.2]} 24... Kxh6 {[%clk 0:01:49.1]} 25. Ne6
{[%clk 0:00:42]} 25... Qd7 {[%clk 0:01:46.8]} 26. Qe3+ {[%clk 0:00:41.6]} 26...
Kh7 {[%clk 0:01:42.3]} 27. Ng5+ {[%clk 0:00:20.6]} 27... Kg8 {[%clk 0:01:33.2]}
28. f4 {[%clk 0:00:20.4]} 28... exf4 {[%clk 0:01:23.9]} 29. Rxf4 {[%clk
0:00:19.3]} 29... Nh5 {[%clk 0:01:23.6]} 30. Rxf8+ {[%clk 0:00:12.4]} 30... Rxf8
{[%clk 0:01:17.5]} 31. d4 {[%clk 0:00:08.7]} 31... Qg4 {[%clk 0:01:08.9]} 32.
Nf3 {[%clk 0:00:04.8]} 32... Nf4 {[%clk 0:01:07.2]} 0-1

[Event "Late-Titled-Tuesday-Blitz-October-17-2023"]
[Site "Chess.com"]
[Date "2023.10.17"]
[Round "8"]
[White "Giorno"]
[Black "Lennis93"]
[Result "1-0"]
[WhiteElo "2565"]
[BlackElo "2701"]
[TimeControl "180+1"]
[EndTime "15:24:26 PDT"]
[Termination "Giorno won by resignation"]

1. d4 {[%clk 0:02:49.9]} 1... Nf6 {[%clk 0:02:59.4]} 2. c4 {[%clk 0:02:50.4]}
2... e6 {[%clk 0:02:59.5]} 3. Nc3 {[%clk 0:02:50.8]} 3... d5 {[%clk 0:03:00.4]}
4. Nf3 {[%clk 0:02:51.1]} 4... dxc4 {[%clk 0:02:58.8]} 5. e4 {[%clk 0:02:49]}
5... b5 {[%clk 0:02:59.1]} 6. Nxb5 {[%clk 0:02:39.6]} 6... Nxe4 {[%clk
0:02:49.9]} 7. Nc3 {[%clk 0:02:38.5]} 7... Nxc3 {[%clk 0:02:48.2]} 8. bxc3
{[%clk 0:02:38.3]} 8... Ba6 {[%clk 0:02:38.4]} 9. Bxc4 {[%clk 0:02:35.9]} 9...
Bxc4 {[%clk 0:02:37.4]} 10. Qa4+ {[%clk 0:02:36.5]} 10... Qd7 {[%clk 0:02:36.9]}
11. Qxc4 {[%clk 0:02:36.4]} 11... Qc6 {[%clk 0:02:36.9]} 12. Qd3 {[%clk
0:02:29.3]} 12... Bd6 {[%clk 0:02:36.6]} 13. O-O {[%clk 0:02:28.2]} 13... Nd7
{[%clk 0:02:36.3]} 14. Rb1 {[%clk 0:02:26.4]} 14... Nb6 {[%clk 0:02:36.4]} 15.
Re1 {[%clk 0:02:19.8]} 15... Qc4 {[%clk 0:02:30.5]} 16. Qe4 {[%clk 0:02:14.2]}
16... Nd5 {[%clk 0:02:17.8]} 17. Nd2 {[%clk 0:02:06.4]} 17... Qxa2 {[%clk
0:02:10.5]} 18. c4 {[%clk 0:02:05.5]} 18... c6 {[%clk 0:01:20.6]} 19. cxd5
{[%clk 0:02:03.2]} 19... cxd5 {[%clk 0:01:21.5]} 20. Qd3 {[%clk 0:02:00.4]}
20... O-O {[%clk 0:01:21.3]} 21. Rb2 {[%clk 0:01:55.6]} 21... Qa5 {[%clk
0:01:19.8]} 22. Rc2 {[%clk 0:01:51.9]} 22... Rfc8 {[%clk 0:01:19.5]} 23. Rd1
{[%clk 0:01:50.9]} 23... Qa4 {[%clk 0:01:14.5]} 24. Rxc8+ {[%clk 0:01:31]} 24...
Rxc8 {[%clk 0:01:15.4]} 25. Nb3 {[%clk 0:01:31]} 25... Rb8 {[%clk 0:01:12.9]}
26. Nc5 {[%clk 0:01:28.4]} 26... Qa2 {[%clk 0:01:05.3]} 27. Be3 {[%clk
0:01:26.4]} 27... a5 {[%clk 0:01:02.6]} 28. g3 {[%clk 0:01:19]} 28... a4 {[%clk
0:01:01.3]} 29. Qa6 {[%clk 0:01:19]} 29... Bxc5 {[%clk 0:00:50.6]} 30. dxc5
{[%clk 0:01:18.7]} 30... h6 {[%clk 0:00:44.7]} 31. c6 {[%clk 0:01:15.2]} 31...
Rb1 {[%clk 0:00:44.9]} 32. Qf1 {[%clk 0:01:06.4]} 32... Rxd1 {[%clk 0:00:15.4]}
33. Qxd1 {[%clk 0:01:07.3]} 33... a3 {[%clk 0:00:15.2]} 34. c7 {[%clk 0:01:03]}
34... Qc4 {[%clk 0:00:15.5]} 35. Qc1 {[%clk 0:01:02.7]} 1-0

[Event "Late-Titled-Tuesday-Blitz-October-17-2023"]
[Site "Chess.com"]
[Date "2023.10.17"]
[Round "8"]
[White "aNaartjieZA"]
[Black "GaiozNigalidze"]
[Result "1-0"]
[WhiteElo "2551"]
[BlackElo "2685"]
[TimeControl "180+1"]
[EndTime "15:24:29 PDT"]
[Termination "aNaartjieZA won by resignation"]

1. e4 {[%clk 0:02:58.5]} 1... c5 {[%clk 0:03:00.5]} 2. Nf3 {[%clk 0:02:58.4]}
2... d6 {[%clk 0:03:01.2]} 3. g3 {[%clk 0:02:58.7]} 3... g6 {[%clk 0:03:01]} 4.
Bg2 {[%clk 0:02:59.1]} 4... Bg7 {[%clk 0:03:01.6]} 5. O-O {[%clk 0:02:59.8]}
5... Nc6 {[%clk 0:03:02.2]} 6. c3 {[%clk 0:03:00.2]} 6... Nf6 {[%clk 0:03:02.5]}
7. Re1 {[%clk 0:03:00.5]} 7... O-O {[%clk 0:03:01.5]} 8. h3 {[%clk 0:03:00.9]}
8... e6 {[%clk 0:03:01.3]} 9. d4 {[%clk 0:03:00.8]} 9... cxd4 {[%clk 0:03:01.8]}
10. cxd4 {[%clk 0:03:01.1]} 10... d5 {[%clk 0:03:02.5]} 11. e5 {[%clk
0:03:00.9]} 11... Ne4 {[%clk 0:03:03.1]} 12. Nbd2 {[%clk 0:03:00.7]} 12... Nxd2
{[%clk 0:03:01.9]} 13. Bxd2 {[%clk 0:03:00.9]} 13... f6 {[%clk 0:03:00.6]} 14.
Bf4 {[%clk 0:02:51.9]} 14... Bd7 {[%clk 0:02:42.9]} 15. Rc1 {[%clk 0:02:48.7]}
15... Qb6 {[%clk 0:02:42]} 16. Qd2 {[%clk 0:02:44]} 16... fxe5 {[%clk
0:02:21.8]} 17. dxe5 {[%clk 0:02:42.5]} 17... Rac8 {[%clk 0:02:11.2]} 18. h4
{[%clk 0:02:37.4]} 18... Qb4 {[%clk 0:01:57.7]} 19. Qe3 {[%clk 0:01:58.6]} 19...
Ne7 {[%clk 0:01:29.7]} 20. b3 {[%clk 0:01:40.4]} 20... Nf5 {[%clk 0:01:17.6]}
21. Qxa7 {[%clk 0:01:31.5]} 21... Rxc1 {[%clk 0:00:37.6]} 22. Rxc1 {[%clk
0:01:30.5]} 22... Bc6 {[%clk 0:00:34.4]} 23. Qc5 {[%clk 0:01:24.9]} 23... Qxc5
{[%clk 0:00:34.4]} 24. Rxc5 {[%clk 0:01:24.3]} 24... Ra8 {[%clk 0:00:34.4]} 25.
a4 {[%clk 0:01:22.8]} 25... d4 {[%clk 0:00:34.1]} 26. Nd2 {[%clk 0:01:15.7]}
26... Bxg2 {[%clk 0:00:29.1]} 27. Kxg2 {[%clk 0:01:15.6]} 27... Ne7 {[%clk
0:00:30]} 28. Rc7 {[%clk 0:01:08.5]} 28... Nc6 {[%clk 0:00:29.4]} 29. Rxb7
{[%clk 0:01:07.2]} 29... Bxe5 {[%clk 0:00:29.4]} 30. Bxe5 {[%clk 0:00:58.6]}
30... Nxe5 {[%clk 0:00:30.3]} 31. Nf3 {[%clk 0:00:58.3]} 31... Nxf3 {[%clk
0:00:24.2]} 32. Kxf3 {[%clk 0:00:58.5]} 32... Rd8 {[%clk 0:00:16.2]} 33. Ke2
{[%clk 0:00:57.8]} 33... e5 {[%clk 0:00:13.3]} 34. f3 {[%clk 0:00:56.7]} 34...
d3+ {[%clk 0:00:11.8]} 35. Kd2 {[%clk 0:00:56.3]} 35... Rd4 {[%clk 0:00:12.7]}
36. a5 {[%clk 0:00:54.9]} 1-0

[Event "Late-Titled-Tuesday-Blitz-October-17-2023"]
[Site "Chess.com"]
[Date "2023.10.17"]
[Round "8"]
[White "NateSolon"]
[Black "Artem_Koval"]
[Result "1-0"]
[WhiteElo "2614"]
[BlackElo "2421"]
[TimeControl "180+1"]
[EndTime "15:24:37 PDT"]
[Termination "NateSolon won by resignation"]

1. d4 {[%clk 0:03:00.9]} 1... d5 {[%clk 0:02:58.5]} 2. Bf4 {[%clk 0:03:00.7]}
2... c5 {[%clk 0:02:57.8]} 3. e3 {[%clk 0:03:00.4]} 3... Nc6 {[%clk 0:02:58.2]}
4. Nf3 {[%clk 0:03:00.6]} 4... Nf6 {[%clk 0:02:55.9]} 5. Nbd2 {[%clk 0:03:00.4]}
5... e6 {[%clk 0:02:44.8]} 6. c3 {[%clk 0:02:56.7]} 6... Nh5 {[%clk 0:02:44.6]}
7. Bg5 {[%clk 0:02:39.6]} 7... f6 {[%clk 0:02:44.4]} 8. Bh4 {[%clk 0:02:38.5]}
8... g6 {[%clk 0:02:44.9]} 9. Be2 {[%clk 0:02:32.5]} 9... cxd4 {[%clk
0:02:42.8]} 10. Nxd4 {[%clk 0:02:28.4]} 10... Nxd4 {[%clk 0:02:39.9]} 11. exd4
{[%clk 0:02:27.7]} 11... Nf4 {[%clk 0:02:32.2]} 12. O-O {[%clk 0:02:21.4]} 12...
Bd6 {[%clk 0:02:19.4]} 13. Bf3 {[%clk 0:02:09.3]} 13... h5 {[%clk 0:02:12.7]}
14. c4 {[%clk 0:01:56.9]} 14... Kf7 {[%clk 0:02:03.3]} 15. cxd5 {[%clk
0:01:52.2]} 15... exd5 {[%clk 0:02:04.2]} 16. Qb3 {[%clk 0:01:51.9]} 16... g5
{[%clk 0:01:36.3]} 17. Bg3 {[%clk 0:01:51]} 17... Be6 {[%clk 0:01:25.9]} 18.
Qxb7+ {[%clk 0:01:31.5]} 18... Kg6 {[%clk 0:01:25.2]} 19. Rfe1 {[%clk 0:01:30]}
19... Re8 {[%clk 0:00:59.9]} 20. Bxf4 {[%clk 0:01:27.2]} 20... Bxf4 {[%clk
0:01:00.8]} 21. Bxh5+ {[%clk 0:01:27.1]} 21... Kh6 {[%clk 0:00:32.8]} 22. Bxe8
{[%clk 0:01:26.2]} 22... Qxe8 {[%clk 0:00:26.4]} 23. Rxe6 {[%clk 0:01:24.7]}
23... Qxe6 {[%clk 0:00:25.9]} 24. Qxa8 {[%clk 0:01:24.6]} 24... Bxd2 {[%clk
0:00:26.4]} 25. Qxa7 {[%clk 0:01:16.1]} 25... Qe4 {[%clk 0:00:19.1]} 26. a4
{[%clk 0:01:06.7]} 26... f5 {[%clk 0:00:16.8]} 27. a5 {[%clk 0:01:03.3]} 27...
f4 {[%clk 0:00:17.2]} 28. Qb6+ {[%clk 0:01:02]} 28... Kh5 {[%clk 0:00:16.3]} 29.
Qb3 {[%clk 0:00:55.7]} 29... g4 {[%clk 0:00:13.9]} 30. a6 {[%clk 0:00:53.8]}
30... f3 {[%clk 0:00:12.9]} 31. a7 {[%clk 0:00:52]} 31... Be1 {[%clk 0:00:11.2]}
32. Qe3 {[%clk 0:00:42.8]} 32... Bxf2+ {[%clk 0:00:02.5]} 33. Qxf2 {[%clk
0:00:43]} 1-0

[Event "Late-Titled-Tuesday-Blitz-October-17-2023"]
[Site "Chess.com"]
[Date "2023.10.17"]
[Round "8"]
[White "TanitoluwaAps116"]
[Black "Langua_Chess"]
[Result "0-1"]
[WhiteElo "2611"]
[BlackElo "2509"]
[TimeControl "180+1"]
[EndTime "15:24:47 PDT"]
[Termination "Langua_Chess won on time"]

1. e4 {[%clk 0:00:58.7]} 1... c5 {[%clk 0:02:49.6]} 2. Nf3 {[%clk 0:00:58.6]}
2... d6 {[%clk 0:02:49.9]} 3. Bb5+ {[%clk 0:00:58.6]} 3... Nd7 {[%clk
0:02:49.4]} 4. c3 {[%clk 0:00:57.5]} 4... a6 {[%clk 0:02:46.6]} 5. Bd3 {[%clk
0:00:57.3]} 5... b5 {[%clk 0:02:26.5]} 6. Bc2 {[%clk 0:00:56.8]} 6... Bb7 {[%clk
0:02:24.8]} 7. d4 {[%clk 0:00:57.7]} 7... Ngf6 {[%clk 0:02:19]} 8. Nbd2 {[%clk
0:00:56.8]} 8... g6 {[%clk 0:02:15.9]} 9. O-O {[%clk 0:00:56.6]} 9... Bg7 {[%clk
0:02:13.9]} 10. Re1 {[%clk 0:00:57]} 10... O-O {[%clk 0:02:10.6]} 11. h3 {[%clk
0:00:54]} 11... Qc7 {[%clk 0:02:08.1]} 12. Bd3 {[%clk 0:00:53.1]} 12... e5
{[%clk 0:02:04.5]} 13. d5 {[%clk 0:00:53.2]} 13... c4 {[%clk 0:02:03.9]} 14. Bf1
{[%clk 0:00:51.7]} 14... Rfc8 {[%clk 0:02:01.9]} 15. Qc2 {[%clk 0:00:44.6]}
15... Nc5 {[%clk 0:01:59.2]} 16. b3 {[%clk 0:00:36.4]} 16... Nd3 {[%clk
0:01:56.6]} 17. Bxd3 {[%clk 0:00:25.2]} 17... cxd3 {[%clk 0:01:57.5]} 18. Qxd3
{[%clk 0:00:25.9]} 18... Qxc3 {[%clk 0:01:55.1]} 19. Qxc3 {[%clk 0:00:26.8]}
19... Rxc3 {[%clk 0:01:55.4]} 20. Ba3 {[%clk 0:00:27.4]} 20... Bf8 {[%clk
0:01:48.2]} 21. Rac1 {[%clk 0:00:26.6]} 21... Rac8 {[%clk 0:01:45.9]} 22. Rxc3
{[%clk 0:00:26.8]} 22... Rxc3 {[%clk 0:01:46.8]} 23. Rc1 {[%clk 0:00:27.2]}
23... Rxc1+ {[%clk 0:01:40.3]} 24. Bxc1 {[%clk 0:00:28.1]} 24... Nh5 {[%clk
0:01:40.8]} 25. Nb1 {[%clk 0:00:17.7]} 25... f5 {[%clk 0:01:38.6]} 26. Nc3
{[%clk 0:00:14.5]} 26... b4 {[%clk 0:01:36.7]} 27. Na4 {[%clk 0:00:11.2]} 27...
fxe4 {[%clk 0:01:35.4]} 28. Ng5 {[%clk 0:00:11.6]} 28... Nf6 {[%clk 0:01:35.9]}
29. Nb6 {[%clk 0:00:06.3]} 29... Nxd5 {[%clk 0:01:35.6]} 30. Nc4 {[%clk
0:00:03.8]} 30... Nc3 {[%clk 0:01:34.6]} 31. Bd2 {[%clk 0:00:03.3]} 31... Nxa2
{[%clk 0:01:34.4]} 32. f3 {[%clk 0:00:03.4]} 32... exf3 {[%clk 0:01:34]} 33.
gxf3 {[%clk 0:00:04.3]} 33... Nc3 {[%clk 0:01:32.7]} 34. Kf2 {[%clk 0:00:03.5]}
34... Nb5 {[%clk 0:01:33]} 35. Ke3 {[%clk 0:00:03.2]} 35... Nd4 {[%clk
0:01:33.7]} 36. Bxb4 {[%clk 0:00:03]} 36... Nxb3 {[%clk 0:01:15.1]} 37. Nxd6
{[%clk 0:00:01.8]} 37... Bc6 {[%clk 0:01:10.9]} 38. f4 {[%clk 0:00:02]} 38... a5
{[%clk 0:01:09.7]} 39. Ba3 {[%clk 0:00:01.3]} 39... exf4+ {[%clk 0:01:07.4]} 40.
Kxf4 {[%clk 0:00:01.9]} 40... a4 {[%clk 0:01:05.2]} 41. Ke5 {[%clk 0:00:01.8]}
41... Nd2 {[%clk 0:01:04.6]} 42. Ke6 {[%clk 0:00:01.6]} 42... Bg2 {[%clk
0:00:55.5]} 43. h4 {[%clk 0:00:01.3]} 43... Bxd6 {[%clk 0:00:52.6]} 0-1

[Event "Late-Titled-Tuesday-Blitz-October-17-2023"]
[Site "Chess.com"]
[Date "2023.10.17"]
[Round "8"]
[White "Sacbutt"]
[Black "icy"]
[Result "1-0"]
[WhiteElo "2244"]
[BlackElo "2397"]
[TimeControl "180+1"]
[EndTime "15:24:49 PDT"]
[Termination "Sacbutt won by resignation"]

1. e4 {[%clk 0:03:00.9]} 1... d6 {[%clk 0:02:57.2]} 2. d4 {[%clk 0:02:59.8]}
2... e5 {[%clk 0:02:57.7]} 3. dxe5 {[%clk 0:02:58.6]} 3... dxe5 {[%clk
0:02:58.6]} 4. Qxd8+ {[%clk 0:02:58.5]} 4... Kxd8 {[%clk 0:02:59.5]} 5. Bc4
{[%clk 0:02:58.2]} 5... f6 {[%clk 0:02:59.8]} 6. Ne2 {[%clk 0:02:57.5]} 6... c6
{[%clk 0:03:00.4]} 7. O-O {[%clk 0:02:57.5]} 7... Kc7 {[%clk 0:03:01.3]} 8. Be3
{[%clk 0:02:57.3]} 8... Nd7 {[%clk 0:03:00.7]} 9. Nbc3 {[%clk 0:02:53.5]} 9...
Bc5 {[%clk 0:02:59.5]} 10. Bxc5 {[%clk 0:02:46.6]} 10... Nxc5 {[%clk 0:03:00.4]}
11. f4 {[%clk 0:02:44.2]} 11... exf4 {[%clk 0:02:50.7]} 12. Nxf4 {[%clk
0:02:42.3]} 12... b5 {[%clk 0:02:45]} 13. Bb3 {[%clk 0:02:30.5]} 13... a5 {[%clk
0:02:42.7]} 14. a4 {[%clk 0:02:24.8]} 14... b4 {[%clk 0:02:36.7]} 15. Nce2
{[%clk 0:02:22.6]} 15... Nxe4 {[%clk 0:02:23.9]} 16. Nh5 {[%clk 0:02:22.8]}
16... g6 {[%clk 0:02:14]} 17. Bxg8 {[%clk 0:02:21.8]} 17... Rxg8 {[%clk
0:02:14.9]} 18. Nxf6 {[%clk 0:02:21.7]} 18... Nxf6 {[%clk 0:02:09.6]} 19. Rxf6
{[%clk 0:02:22.6]} 19... Rg7 {[%clk 0:02:04.4]} 20. Raf1 {[%clk 0:02:14.4]}
20... Ra7 {[%clk 0:01:46.3]} 21. Nd4 {[%clk 0:02:12.5]} 21... Bd7 {[%clk
0:01:30.8]} 22. Rf7 {[%clk 0:02:06.1]} 22... Rxf7 {[%clk 0:01:30.1]} 23. Rxf7
{[%clk 0:02:07]} 23... h5 {[%clk 0:01:29.8]} 24. Rg7 {[%clk 0:01:56.2]} 24...
Kd6 {[%clk 0:01:19]} 25. Rxg6+ {[%clk 0:01:53]} 25... Kd5 {[%clk 0:01:19.6]} 26.
Nb3 {[%clk 0:01:27.2]} 26... Bf5 {[%clk 0:01:11.6]} 27. Rg5 {[%clk 0:01:23.6]}
27... Ke4 {[%clk 0:01:03]} 28. Rxh5 {[%clk 0:01:18.2]} 28... Kf4 {[%clk
0:01:02.2]} 29. g3+ {[%clk 0:00:56.3]} 29... Kg4 {[%clk 0:00:43.4]} 30. Rh4+
{[%clk 0:00:55]} 30... Kg5 {[%clk 0:00:43.4]} 31. Nd4 {[%clk 0:00:51.3]} 31...
Bg4 {[%clk 0:00:39.3]} 32. h3 {[%clk 0:00:34.3]} 32... Bc8 {[%clk 0:00:38.9]}
33. Nxc6 {[%clk 0:00:29.2]} 33... Rc7 {[%clk 0:00:38.6]} 34. Nxa5 {[%clk
0:00:28.5]} 34... Bd7 {[%clk 0:00:39.5]} 35. Rxb4 {[%clk 0:00:25.5]} 35... Rxc2
{[%clk 0:00:38.1]} 36. h4+ {[%clk 0:00:23.3]} 36... Kf6 {[%clk 0:00:35]} 37. Nc4
{[%clk 0:00:21.6]} 37... Ke6 {[%clk 0:00:31.6]} 38. a5 {[%clk 0:00:20.4]} 38...
Ke7 {[%clk 0:00:31]} 39. a6 {[%clk 0:00:20.4]} 1-0